[Event "*** Titled Tuesday Blitz"]
[Site "Chess.com"]
[Date "2021.03.02"]
[Round "2"]
[White "PavelShkapenko"]
[Black "Orest_Vovk"]
[Result "1/2-1/2"]
[WhiteElo "2703"]
[BlackElo "2502"]
[TimeControl "180+1"]
[EndTime "10:18:49 PST"]
[Termination "Game drawn - insufficient material"]

1. e4 {[%clk 0:03:00.9]} 1... g5 {[%clk 0:02:58]} 2. d4 {[%clk 0:02:59.4]} 2...
g4 {[%clk 0:02:58]} 3. Bc4 {[%clk 0:02:51.5]} 3... d6 {[%clk 0:02:56.6]} 4. h3
{[%clk 0:02:46.8]} 4... Nf6 {[%clk 0:02:52]} 5. Nc3 {[%clk 0:02:45.9]} 5... Bg7
{[%clk 0:02:48.7]} 6. hxg4 {[%clk 0:02:45.8]} 6... Bxg4 {[%clk 0:02:46.4]} 7. f3
{[%clk 0:02:45.6]} 7... Be6 {[%clk 0:02:43.3]} 8. Bxe6 {[%clk 0:02:44.2]} 8...
fxe6 {[%clk 0:02:42.8]} 9. Nh3 {[%clk 0:02:44.8]} 9... Nc6 {[%clk 0:02:34]} 10.
Be3 {[%clk 0:02:43.5]} 10... Qd7 {[%clk 0:02:32.5]} 11. Qd2 {[%clk 0:02:42.4]}
11... O-O-O {[%clk 0:02:29.7]} 12. O-O-O {[%clk 0:02:42.2]} 12... a6 {[%clk
0:02:26.9]} 13. d5 {[%clk 0:02:30.7]} 13... exd5 {[%clk 0:02:24.4]} 14. exd5
{[%clk 0:02:31.6]} 14... Ne5 {[%clk 0:02:24]} 15. Ng5 {[%clk 0:02:31.6]} 15...
Qf5 {[%clk 0:02:07.2]} 16. Ne6 {[%clk 0:02:24.9]} 16... Rdg8 {[%clk 0:02:02.5]}
17. Qd4 {[%clk 0:02:14.1]} 17... c5 {[%clk 0:01:49]} 18. Qa4 {[%clk 0:01:30.3]}
18... Nxd5 {[%clk 0:01:40]} 19. Nxd5 {[%clk 0:01:30.2]} 19... Qxe6 {[%clk
0:01:38.5]} 20. Qa5 {[%clk 0:01:29.7]} 20... Kb8 {[%clk 0:01:27.5]} 21. Qc7+
{[%clk 0:01:19.1]} 21... Ka8 {[%clk 0:01:22.7]} 22. Qxc5 {[%clk 0:00:58.8]}
22... dxc5 {[%clk 0:01:13.6]} 23. Nc7+ {[%clk 0:00:59]} 23... Kb8 {[%clk
0:01:06.2]} 24. Nxe6 {[%clk 0:00:59.9]} 24... Nc4 {[%clk 0:01:06]} 25. Bf4+
{[%clk 0:00:59.9]} 25... Be5 {[%clk 0:01:01.2]} 26. Bxe5+ {[%clk 0:00:56]} 26...
Nxe5 {[%clk 0:01:02.1]} 27. Rd2 {[%clk 0:00:55.8]} 27... b6 {[%clk 0:00:51.8]}
28. Re2 {[%clk 0:00:52]} 28... Nc6 {[%clk 0:00:48.6]} 29. Rd1 {[%clk 0:00:49.9]}
29... Rg6 {[%clk 0:00:38.2]} 30. c3 {[%clk 0:00:45.7]} 30... Rhg8 {[%clk
0:00:29.9]} 31. Rdd2 {[%clk 0:00:44.6]} 31... Kc8 {[%clk 0:00:28.8]} 32. Nf4
{[%clk 0:00:42.2]} 32... Rd6 {[%clk 0:00:27.4]} 33. Nd5 {[%clk 0:00:35.6]} 33...
b5 {[%clk 0:00:18]} 34. g4 {[%clk 0:00:25.8]} 34... Kd7 {[%clk 0:00:14.2]} 35.
Ne3 {[%clk 0:00:20.2]} 35... Rxd2 {[%clk 0:00:13.4]} 36. Kxd2 {[%clk 0:00:20.5]}
36... e6 {[%clk 0:00:12.3]} 37. Rh2 {[%clk 0:00:20]} 37... Rg7 {[%clk
0:00:11.8]} 38. Ke2 {[%clk 0:00:20.2]} 38... Ne5 {[%clk 0:00:12]} 39. Rh1 {[%clk
0:00:20.5]} 39... Kc6 {[%clk 0:00:11.1]} 40. Rd1 {[%clk 0:00:19]} 40... c4
{[%clk 0:00:11.3]} 41. Rd8 {[%clk 0:00:18.6]} 41... Nd3 {[%clk 0:00:11.5]} 42.
b3 {[%clk 0:00:17.5]} 42... Nc1+ {[%clk 0:00:11.4]} 43. Kd2 {[%clk 0:00:17.7]}
43... Nxa2 {[%clk 0:00:12.3]} 44. bxc4 {[%clk 0:00:18]} 44... Rd7+ {[%clk
0:00:12.4]} 45. Rxd7 {[%clk 0:00:17.5]} 45... Kxd7 {[%clk 0:00:13.3]} 46. cxb5
{[%clk 0:00:17.7]} 46... axb5 {[%clk 0:00:13.3]} 47. Kc2 {[%clk 0:00:18.1]}
47... b4 {[%clk 0:00:13.8]} 48. c4 {[%clk 0:00:17]} 48... Nc3 {[%clk 0:00:13.7]}
49. Kb3 {[%clk 0:00:17.3]} 49... Ne2 {[%clk 0:00:13]} 50. Kxb4 {[%clk
0:00:17.4]} 50... Nd4 {[%clk 0:00:13.3]} 51. f4 {[%clk 0:00:16.9]} 51... Ne2
{[%clk 0:00:13.6]} 52. f5 {[%clk 0:00:16.9]} 52... exf5 {[%clk 0:00:14]} 53.
Nxf5 {[%clk 0:00:16.8]} 53... Ke6 {[%clk 0:00:13.2]} 54. Kb5 {[%clk 0:00:15.8]}
54... Nc3+ {[%clk 0:00:11.3]} 55. Kb6 {[%clk 0:00:15.4]} 55... Ne4 {[%clk
0:00:12.2]} 56. c5 {[%clk 0:00:13.3]} 56... Nxc5 {[%clk 0:00:12.2]} 57. Kxc5
{[%clk 0:00:13.4]} 57... Kf6 {[%clk 0:00:12.6]} 58. Kd5 {[%clk 0:00:07.6]} 58...
Kg5 {[%clk 0:00:11.4]} 59. Ne3 {[%clk 0:00:07.5]} 59... h5 {[%clk 0:00:11.3]}
60. gxh5 {[%clk 0:00:07.8]} 60... Kxh5 {[%clk 0:00:11.5]} 1/2-1/2

[Event "*** Titled Tuesday Blitz"]
[Site "Chess.com"]
[Date "2021.03.02"]
[Round "2"]
[White "Oligan22"]
[Black "NTBT_DHS"]
[Result "1-0"]
[WhiteElo "2532"]
[BlackElo "2766"]
[TimeControl "180+1"]
[EndTime "10:18:56 PST"]
[Termination "Oligan22 won by resignation"]

1. e4 {[%clk 0:03:00.9]} 1... g6 {[%clk 0:02:59.9]} 2. d4 {[%clk 0:03:00.7]}
2... Bg7 {[%clk 0:03:00.6]} 3. Nc3 {[%clk 0:03:01.3]} 3... d6 {[%clk 0:03:01.2]}
4. f4 {[%clk 0:03:01.9]} 4... Nd7 {[%clk 0:03:00.8]} 5. Nf3 {[%clk 0:03:01.9]}
5... c5 {[%clk 0:02:58.7]} 6. d5 {[%clk 0:02:43.5]} 6... Ngf6 {[%clk 0:02:57.5]}
7. a4 {[%clk 0:02:39.1]} 7... O-O {[%clk 0:02:56.2]} 8. Bc4 {[%clk 0:02:33.8]}
8... a6 {[%clk 0:02:47.1]} 9. a5 {[%clk 0:02:32.8]} 9... b5 {[%clk 0:02:46.4]}
10. axb6 {[%clk 0:02:31.2]} 10... Nxb6 {[%clk 0:02:46.8]} 11. Bd3 {[%clk
0:02:21.9]} 11... e6 {[%clk 0:02:45.1]} 12. dxe6 {[%clk 0:02:19.8]} 12... Bxe6
{[%clk 0:02:44.2]} 13. O-O {[%clk 0:02:17]} 13... c4 {[%clk 0:02:42.2]} 14. Be2
{[%clk 0:02:17]} 14... d5 {[%clk 0:02:40.4]} 15. e5 {[%clk 0:02:09.3]} 15... Ne4
{[%clk 0:02:30.5]} 16. Nd4 {[%clk 0:02:01.2]} 16... Qd7 {[%clk 0:02:09.3]} 17.
Bf3 {[%clk 0:01:55.8]} 17... Nxc3 {[%clk 0:02:07.8]} 18. bxc3 {[%clk 0:01:56.7]}
18... Rfd8 {[%clk 0:02:03.9]} 19. Be3 {[%clk 0:01:51.6]} 19... Na4 {[%clk
0:01:57.1]} 20. Qd2 {[%clk 0:01:44.5]} 20... Nc5 {[%clk 0:01:56.1]} 21. Ra5
{[%clk 0:01:34.3]} 21... Ne4 {[%clk 0:01:54.3]} 22. Bxe4 {[%clk 0:01:34.1]}
22... dxe4 {[%clk 0:01:55.2]} 23. Rfa1 {[%clk 0:01:34.5]} 23... Qb7 {[%clk
0:01:52.1]} 24. Qe2 {[%clk 0:01:29.2]} 24... Bd5 {[%clk 0:01:49.1]} 25. h3
{[%clk 0:01:22]} 25... f6 {[%clk 0:01:40.8]} 26. e6 {[%clk 0:01:09.6]} 26... f5
{[%clk 0:01:36]} 27. Qe1 {[%clk 0:00:52.9]} 27... Re8 {[%clk 0:01:33.2]} 28. Rb1
{[%clk 0:00:45.1]} 28... Bxd4 {[%clk 0:01:20.2]} 29. Rxb7 {[%clk 0:00:44.7]}
29... Bxe3+ {[%clk 0:01:20.8]} 30. Qxe3 {[%clk 0:00:44.6]} 30... Bxb7 {[%clk
0:01:21.7]} 31. Qb6 {[%clk 0:00:43.6]} 31... Re7 {[%clk 0:01:11.4]} 32. Rc5
{[%clk 0:00:37.1]} 32... Rae8 {[%clk 0:00:26.1]} 33. Kf2 {[%clk 0:00:35.7]}
33... e3+ {[%clk 0:00:24.1]} 34. Ke2 {[%clk 0:00:33.7]} 34... Bxg2 {[%clk
0:00:24.7]} 35. Re5 {[%clk 0:00:33.4]} 35... Be4 {[%clk 0:00:23.8]} 36. Qxa6
{[%clk 0:00:30]} 36... Bxc2 {[%clk 0:00:23.1]} 37. Qxc4 {[%clk 0:00:29.1]} 37...
Be4 {[%clk 0:00:22.8]} 38. Kxe3 {[%clk 0:00:28.9]} 38... Kg7 {[%clk 0:00:23.3]}
39. Qd4 {[%clk 0:00:28.5]} 39... Kg8 {[%clk 0:00:24]} 40. Qd6 {[%clk 0:00:27.7]}
40... Bg2 {[%clk 0:00:22]} 41. h4 {[%clk 0:00:27.4]} 41... Bf1 {[%clk
0:00:22.5]} 42. Kd4 {[%clk 0:00:25.1]} 42... Bg2 {[%clk 0:00:18.7]} 43. c4
{[%clk 0:00:24.5]} 43... Kf8 {[%clk 0:00:19.3]} 44. c5 {[%clk 0:00:24.5]} 44...
Rc8 {[%clk 0:00:19.5]} 45. Kc4 {[%clk 0:00:18.6]} 45... Bf1+ {[%clk 0:00:18.8]}
46. Kc3 {[%clk 0:00:16.7]} 46... Ke8 {[%clk 0:00:19.1]} 47. Rd5 {[%clk
0:00:14.8]} 47... Bb5 {[%clk 0:00:17.4]} 48. Rd2 {[%clk 0:00:12.8]} 48... Kf8
{[%clk 0:00:14.9]} 49. Qd4 {[%clk 0:00:12.5]} 49... Kg8 {[%clk 0:00:14.6]} 50.
Qd6 {[%clk 0:00:12.7]} 50... Kf8 {[%clk 0:00:14.6]} 51. h5 {[%clk 0:00:13.3]}
51... Be8 {[%clk 0:00:12.7]} 52. hxg6 {[%clk 0:00:13.3]} 52... Bxg6 {[%clk
0:00:13.6]} 53. Rg2 {[%clk 0:00:12.7]} 53... Re8 {[%clk 0:00:13.1]} 54. Re2
{[%clk 0:00:11.6]} 54... Rc8 {[%clk 0:00:12.7]} 55. Kd4 {[%clk 0:00:11]} 55...
Ke8 {[%clk 0:00:12.4]} 56. Ke5 {[%clk 0:00:10.4]} 56... Rec7 {[%clk 0:00:11.8]}
57. Kf6 {[%clk 0:00:10.2]} 57... Rb7 {[%clk 0:00:08.3]} 58. Rb2 {[%clk 0:00:09]}
58... Rbc7 {[%clk 0:00:07.5]} 59. c6 {[%clk 0:00:08]} 59... Bh5 {[%clk
0:00:05.9]} 60. Rb7 {[%clk 0:00:08.1]} 60... Rxb7 {[%clk 0:00:05]} 61. cxb7
{[%clk 0:00:09]} 1-0

[Event "*** Titled Tuesday Blitz"]
[Site "Chess.com"]
[Date "2021.03.02"]
[Round "2"]
[White "AttilaTurzo"]
[Black "DrVelja"]
[Result "0-1"]
[WhiteElo "2539"]
[BlackElo "2850"]
[TimeControl "180+1"]
[EndTime "10:19:00 PST"]
[Termination "DrVelja won by resignation"]

1. d4 {[%clk 0:03:00.9]} 1... Nf6 {[%clk 0:02:59.7]} 2. Nf3 {[%clk 0:02:59.3]}
2... g6 {[%clk 0:02:59.7]} 3. Bg5 {[%clk 0:02:59.8]} 3... Bg7 {[%clk 0:03:00.4]}
4. c3 {[%clk 0:03:00.4]} 4... O-O {[%clk 0:03:00.9]} 5. Nbd2 {[%clk 0:03:01.1]}
5... d6 {[%clk 0:03:01.5]} 6. e4 {[%clk 0:03:01.6]} 6... h6 {[%clk 0:03:01.1]}
7. Bh4 {[%clk 0:03:01.2]} 7... c5 {[%clk 0:03:01.8]} 8. dxc5 {[%clk 0:03:01.2]}
8... dxc5 {[%clk 0:03:02.7]} 9. Be2 {[%clk 0:03:00.3]} 9... Nc6 {[%clk
0:03:03.3]} 10. O-O {[%clk 0:03:00.6]} 10... Nh5 {[%clk 0:03:04]} 11. Qc2 {[%clk
0:02:59.9]} 11... Nf4 {[%clk 0:03:03.4]} 12. Bc4 {[%clk 0:02:59.4]} 12... Na5
{[%clk 0:03:01.5]} 13. Rfd1 {[%clk 0:02:55.6]} 13... Qc7 {[%clk 0:02:49]} 14.
Bf1 {[%clk 0:02:51]} 14... Nh5 {[%clk 0:02:43.7]} 15. Bg3 {[%clk 0:02:45.6]}
15... Nxg3 {[%clk 0:02:43.5]} 16. hxg3 {[%clk 0:02:46.5]} 16... Be6 {[%clk
0:02:42.3]} 17. Re1 {[%clk 0:02:33.2]} 17... Rad8 {[%clk 0:02:38.1]} 18. Qa4
{[%clk 0:02:28.9]} 18... a6 {[%clk 0:02:35.7]} 19. Qc2 {[%clk 0:02:20.5]} 19...
b5 {[%clk 0:02:34.7]} 20. a4 {[%clk 0:02:20.9]} 20... c4 {[%clk 0:02:32.2]} 21.
axb5 {[%clk 0:02:20.3]} 21... axb5 {[%clk 0:02:33.1]} 22. Rad1 {[%clk
0:02:01.9]} 22... Nb7 {[%clk 0:02:30.4]} 23. Nb1 {[%clk 0:01:56.9]} 23... Nc5
{[%clk 0:02:29.1]} 24. Nd4 {[%clk 0:01:56.5]} 24... Bg4 {[%clk 0:02:24.7]} 25.
f3 {[%clk 0:01:52.5]} 25... Bd7 {[%clk 0:02:24.8]} 26. Qf2 {[%clk 0:01:40.3]}
26... e5 {[%clk 0:02:17.8]} 27. Nc2 {[%clk 0:01:36.1]} 27... f5 {[%clk
0:02:18.4]} 28. exf5 {[%clk 0:01:22.7]} 28... Bxf5 {[%clk 0:02:19.3]} 29. Nb4
{[%clk 0:01:20.9]} 29... Bd3 {[%clk 0:01:52.2]} 30. Nd2 {[%clk 0:01:18.3]} 30...
e4 {[%clk 0:01:49.6]} 31. Bxd3 {[%clk 0:01:10.4]} 31... exd3 {[%clk 0:01:37.3]}
32. Ne4 {[%clk 0:01:09]} 32... Nb3 {[%clk 0:01:28]} 33. Na6 {[%clk 0:00:58.9]}
33... Qc6 {[%clk 0:01:18.4]} 34. Nac5 {[%clk 0:00:54.3]} 34... Nxc5 {[%clk
0:01:19]} 35. Qxc5 {[%clk 0:00:54.6]} 35... Qxc5+ {[%clk 0:01:19.5]} 36. Nxc5
{[%clk 0:00:55.5]} 36... Rfe8 {[%clk 0:01:19.3]} 37. Ne6 {[%clk 0:00:52.9]}
37... Rd6 {[%clk 0:01:04.9]} 38. Nxg7 {[%clk 0:00:42.1]} 38... Rxe1+ {[%clk
0:01:05.8]} 39. Rxe1 {[%clk 0:00:42.8]} 39... Kxg7 {[%clk 0:01:06.7]} 40. Kf2
{[%clk 0:00:40.9]} 40... Kf6 {[%clk 0:01:03.6]} 41. g4 {[%clk 0:00:36.1]} 41...
Re6 {[%clk 0:00:59.6]} 42. Rxe6+ {[%clk 0:00:31.2]} 42... Kxe6 {[%clk
0:01:00.5]} 43. g3 {[%clk 0:00:27.3]} 43... h5 {[%clk 0:00:58.6]} 44. gxh5
{[%clk 0:00:24.5]} 44... gxh5 {[%clk 0:00:59.5]} 45. Ke3 {[%clk 0:00:23.7]}
45... Kf5 {[%clk 0:00:58.7]} 46. Kd2 {[%clk 0:00:20.8]} 46... Kg5 {[%clk
0:00:59]} 47. Ke3 {[%clk 0:00:20.3]} 47... h4 {[%clk 0:00:59.4]} 48. gxh4+
{[%clk 0:00:14.8]} 48... Kxh4 {[%clk 0:00:59.6]} 49. Kf2 {[%clk 0:00:13.5]}
49... Kh3 {[%clk 0:00:58]} 50. Ke3 {[%clk 0:00:13.9]} 50... Kg3 {[%clk
0:00:57.6]} 51. b3 {[%clk 0:00:09.4]} 51... Kh4 {[%clk 0:00:53.1]} 52. bxc4
{[%clk 0:00:07]} 52... bxc4 {[%clk 0:00:54]} 53. Kf2 {[%clk 0:00:07.4]} 53...
Kg5 {[%clk 0:00:54]} 54. Ke3 {[%clk 0:00:06.2]} 54... Kf5 {[%clk 0:00:53.3]} 55.
f4 {[%clk 0:00:04.5]} 55... Kg4 {[%clk 0:00:54.2]} 56. Kd2 {[%clk 0:00:02.4]}
56... Kxf4 {[%clk 0:00:54.2]} 57. Kd1 {[%clk 0:00:03]} 57... Ke3 {[%clk
0:00:54.9]} 58. Ke1 {[%clk 0:00:03.4]} 58... Ke4 {[%clk 0:00:54.6]} 59. Kd2
{[%clk 0:00:03.3]} 59... Kf3 {[%clk 0:00:54.7]} 60. Kd1 {[%clk 0:00:03]} 60...
Ke3 {[%clk 0:00:36.2]} 61. Ke1 {[%clk 0:00:02.9]} 61... d2+ {[%clk 0:00:30.8]}
62. Kd1 {[%clk 0:00:03]} 62... Ke4 {[%clk 0:00:31.5]} 63. Kxd2 {[%clk
0:00:03.4]} 63... Kf3 {[%clk 0:00:32.4]} 64. Kd1 {[%clk 0:00:02.7]} 64... Ke3
{[%clk 0:00:32.2]} 65. Kc2 {[%clk 0:00:03.2]} 65... Ke2 {[%clk 0:00:32.2]} 66.
Kc1 {[%clk 0:00:03.1]} 66... Kd3 {[%clk 0:00:32.4]} 67. Kb2 {[%clk 0:00:04]}
67... Kd2 {[%clk 0:00:33]} 68. Kb1 {[%clk 0:00:04.1]} 68... Kxc3 {[%clk
0:00:33.6]} 69. Kc1 {[%clk 0:00:05]} 69... Kd3 {[%clk 0:00:32.1]} 70. Kd1 {[%clk
0:00:02.3]} 70... c3 {[%clk 0:00:32.7]} 71. Kc1 {[%clk 0:00:02.9]} 71... c2
{[%clk 0:00:33.3]} 0-1

[Event "*** Titled Tuesday Blitz"]
[Site "Chess.com"]
[Date "2021.03.02"]
[Round "2"]
[White "Onischuk_V"]
[Black "PotapovaM"]
[Result "1-0"]
[WhiteElo "2826"]
[BlackElo "2530"]
[TimeControl "180+1"]
[EndTime "10:19:01 PST"]
[Termination "Onischuk_V won by resignation"]

1. Nf3 {[%clk 0:03:00.9]} 1... Nf6 {[%clk 0:02:58]} 2. g3 {[%clk 0:03:00.6]}
2... d5 {[%clk 0:02:56.7]} 3. Bg2 {[%clk 0:03:00.9]} 3... e6 {[%clk 0:02:54]} 4.
O-O {[%clk 0:03:00.7]} 4... c5 {[%clk 0:02:54.4]} 5. d3 {[%clk 0:03:01]} 5...
Nc6 {[%clk 0:02:53.6]} 6. Nbd2 {[%clk 0:03:01.6]} 6... g6 {[%clk 0:02:54.1]} 7.
e4 {[%clk 0:03:00.9]} 7... Bg7 {[%clk 0:02:54.7]} 8. exd5 {[%clk 0:02:52.6]}
8... Nxd5 {[%clk 0:02:43]} 9. Nb3 {[%clk 0:02:38.2]} 9... b6 {[%clk 0:02:42.8]}
10. d4 {[%clk 0:02:37.9]} 10... cxd4 {[%clk 0:02:18.3]} 11. Nfxd4 {[%clk
0:02:36.9]} 11... Bb7 {[%clk 0:02:15.3]} 12. Nxc6 {[%clk 0:02:22.6]} 12... Bxc6
{[%clk 0:02:15.3]} 13. Nd4 {[%clk 0:02:23.3]} 13... Bd7 {[%clk 0:01:53.8]} 14.
Bxd5 {[%clk 0:01:58.5]} 14... exd5 {[%clk 0:01:53.5]} 15. Re1+ {[%clk
0:01:59.1]} 15... Kf8 {[%clk 0:01:53.6]} 16. Bf4 {[%clk 0:01:59.2]} 16... Kg8
{[%clk 0:01:32.7]} 17. Be5 {[%clk 0:01:56.2]} 17... Bxe5 {[%clk 0:00:58.6]} 18.
Rxe5 {[%clk 0:01:55.5]} 18... Qf6 {[%clk 0:00:51.1]} 19. Rxd5 {[%clk 0:01:51]}
19... Bh3 {[%clk 0:00:48.9]} 20. Qf3 {[%clk 0:01:30.1]} 20... Qxf3 {[%clk
0:00:47.3]} 21. Nxf3 {[%clk 0:01:29.8]} 21... Kg7 {[%clk 0:00:47.6]} 22. Re1
{[%clk 0:01:24.2]} 22... Rhe8 {[%clk 0:00:45.2]} 23. Rde5 {[%clk 0:01:23.2]}
23... Rxe5 {[%clk 0:00:39.1]} 24. Nxe5 {[%clk 0:01:23.1]} 24... Rd8 {[%clk
0:00:34.9]} 25. Nd3 {[%clk 0:01:17.5]} 25... Rc8 {[%clk 0:00:35]} 26. Re2 {[%clk
0:01:05.9]} 26... Bg4 {[%clk 0:00:33.6]} 27. Rd2 {[%clk 0:01:05.3]} 27... Rd8
{[%clk 0:00:28.9]} 28. Kg2 {[%clk 0:00:59.5]} 28... Be6 {[%clk 0:00:24.6]} 29.
b3 {[%clk 0:00:56.5]} 29... Bd5+ {[%clk 0:00:24.1]} 30. f3 {[%clk 0:00:56.3]}
30... g5 {[%clk 0:00:17.1]} 31. Kf2 {[%clk 0:00:56.5]} 31... Bc6 {[%clk
0:00:13.8]} 32. Re2 {[%clk 0:00:52.4]} 32... Rc8 {[%clk 0:00:12.4]} 33. c4
{[%clk 0:00:51.1]} 33... Rc7 {[%clk 0:00:12.3]} 34. Re5 {[%clk 0:00:50.2]} 34...
f6 {[%clk 0:00:12]} 35. Re6 {[%clk 0:00:49.9]} 35... Kf7 {[%clk 0:00:10.9]} 36.
Rd6 {[%clk 0:00:49.3]} 36... Ke7 {[%clk 0:00:11.1]} 37. Rd4 {[%clk 0:00:49.4]}
37... Ke6 {[%clk 0:00:10.6]} 38. f4 {[%clk 0:00:47.9]} 38... h5 {[%clk
0:00:10.2]} 39. Ke3 {[%clk 0:00:46.2]} 39... Kf5 {[%clk 0:00:10.5]} 40. fxg5
{[%clk 0:00:44.1]} 40... fxg5 {[%clk 0:00:11.4]} 41. Nb4 {[%clk 0:00:43.4]}
41... Re7+ {[%clk 0:00:11.8]} 42. Kf2 {[%clk 0:00:43.5]} 42... Bb7 {[%clk
0:00:10.3]} 43. Nd5 {[%clk 0:00:43.3]} 43... Rf7 {[%clk 0:00:08.2]} 44. Ke3
{[%clk 0:00:40.5]} 44... Ke5 {[%clk 0:00:07.7]} 45. Rd1 {[%clk 0:00:39.4]} 45...
g4 {[%clk 0:00:07.5]} 46. Nf4 {[%clk 0:00:36.1]} 46... Bf3 {[%clk 0:00:08.1]}
47. Rd8 {[%clk 0:00:34.8]} 47... h4 {[%clk 0:00:08]} 48. Ng6+ {[%clk 0:00:33.9]}
48... Kf6 {[%clk 0:00:08.3]} 49. Nxh4 {[%clk 0:00:32.5]} 49... Re7+ {[%clk
0:00:08.3]} 50. Kd3 {[%clk 0:00:30.4]} 50... Re1 {[%clk 0:00:07.7]} 51. Nxf3
{[%clk 0:00:28.5]} 51... gxf3 {[%clk 0:00:02.9]} 52. Rf8+ {[%clk 0:00:28.5]}
52... Ke5 {[%clk 0:00:03.4]} 53. Rxf3 {[%clk 0:00:28.4]} 53... Rh1 {[%clk
0:00:04.3]} 54. Rf2 {[%clk 0:00:28.6]} 54... a6 {[%clk 0:00:03.6]} 55. Re2+
{[%clk 0:00:28.7]} 55... Kd6 {[%clk 0:00:03.5]} 56. Ke3 {[%clk 0:00:26.7]} 56...
Kc5 {[%clk 0:00:03.2]} 57. Kf4 {[%clk 0:00:25.2]} 57... Rf1+ {[%clk 0:00:02.6]}
58. Kg5 {[%clk 0:00:25]} 58... Rf8 {[%clk 0:00:03.5]} 59. g4 {[%clk 0:00:23.8]}
59... Kd4 {[%clk 0:00:04.4]} 60. h4 {[%clk 0:00:23.2]} 60... Kd3 {[%clk
0:00:05.3]} 61. Re6 {[%clk 0:00:22.6]} 61... Rg8+ {[%clk 0:00:04.5]} 62. Rg6
{[%clk 0:00:22.1]} 62... Rf8 {[%clk 0:00:04.7]} 63. h5 {[%clk 0:00:21.7]} 63...
Re8 {[%clk 0:00:05.3]} 64. h6 {[%clk 0:00:21.7]} 64... Ke4 {[%clk 0:00:05.9]}
65. h7 {[%clk 0:00:21.7]} 1-0

[Event "*** Titled Tuesday Blitz"]
[Site "Chess.com"]
[Date "2021.03.02"]
[Round "2"]
[White "Shield12"]
[Black "IriBu"]
[Result "0-1"]
[WhiteElo "2833"]
[BlackElo "2555"]
[TimeControl "180+1"]
[EndTime "10:19:02 PST"]
[Termination "IriBu won on time"]

1. e4 {[%clk 0:03:00.3]} 1... c5 {[%clk 0:02:59.6]} 2. Nf3 {[%clk 0:02:59.3]}
2... Nc6 {[%clk 0:02:59.8]} 3. Bb5 {[%clk 0:02:58.9]} 3... g6 {[%clk 0:02:59.7]}
4. Bxc6 {[%clk 0:02:58.2]} 4... bxc6 {[%clk 0:03:00.6]} 5. O-O {[%clk
0:02:56.9]} 5... Bg7 {[%clk 0:03:00.7]} 6. Re1 {[%clk 0:02:57.4]} 6... Nh6
{[%clk 0:03:00.7]} 7. h3 {[%clk 0:02:55.4]} 7... O-O {[%clk 0:03:00.3]} 8. c3
{[%clk 0:02:55.6]} 8... f5 {[%clk 0:02:56.7]} 9. e5 {[%clk 0:02:55.7]} 9... d6
{[%clk 0:02:54.8]} 10. d4 {[%clk 0:02:52.2]} 10... cxd4 {[%clk 0:02:52.6]} 11.
cxd4 {[%clk 0:02:52.5]} 11... c5 {[%clk 0:02:44.4]} 12. dxc5 {[%clk 0:02:44.9]}
12... dxc5 {[%clk 0:02:44]} 13. Qc2 {[%clk 0:02:41.6]} 13... Qc7 {[%clk
0:02:41.4]} 14. Nc3 {[%clk 0:02:32.2]} 14... Bb7 {[%clk 0:02:38]} 15. Ng5 {[%clk
0:02:32.2]} 15... Qc6 {[%clk 0:02:32.4]} 16. f3 {[%clk 0:02:29.6]} 16... Nf7
{[%clk 0:02:31.5]} 17. Nxf7 {[%clk 0:02:25.7]} 17... Kxf7 {[%clk 0:02:31]} 18.
Bf4 {[%clk 0:01:58]} 18... Rfd8 {[%clk 0:02:21.4]} 19. Rad1 {[%clk 0:01:53.2]}
19... Rd4 {[%clk 0:02:17.5]} 20. Be3 {[%clk 0:01:37.5]} 20... Rxd1 {[%clk
0:02:14.9]} 21. Rxd1 {[%clk 0:01:38.4]} 21... Bxe5 {[%clk 0:02:12]} 22. Nd5
{[%clk 0:01:37.3]} 22... e6 {[%clk 0:02:03.9]} 23. Nf4 {[%clk 0:01:35.5]} 23...
c4 {[%clk 0:01:56.9]} 24. Ne2 {[%clk 0:01:28.1]} 24... Qc7 {[%clk 0:01:51.9]}
25. Bd4 {[%clk 0:01:25.1]} 25... Bd5 {[%clk 0:01:44.2]} 26. Qc3 {[%clk
0:01:21.1]} 26... Bxd4+ {[%clk 0:01:41.3]} 27. Qxd4 {[%clk 0:01:19.8]} 27... Rb8
{[%clk 0:01:40.8]} 28. Nc3 {[%clk 0:01:17.3]} 28... Qb6 {[%clk 0:01:34.2]} 29.
Qxb6 {[%clk 0:01:04.2]} 29... Rxb6 {[%clk 0:01:34.1]} 30. Rd2 {[%clk 0:01:00.6]}
30... Ke7 {[%clk 0:01:28.8]} 31. Rxd5 {[%clk 0:00:46.3]} 31... exd5 {[%clk
0:01:25.5]} 32. Nxd5+ {[%clk 0:00:39.3]} 32... Kd6 {[%clk 0:01:25.3]} 33. Nxb6
{[%clk 0:00:37.7]} 33... axb6 {[%clk 0:01:26.2]} 34. Kf2 {[%clk 0:00:31.9]}
34... Ke5 {[%clk 0:01:24.6]} 35. Ke3 {[%clk 0:00:30.6]} 35... f4+ {[%clk
0:01:24.6]} 36. Kd2 {[%clk 0:00:22.2]} 36... Kd4 {[%clk 0:01:24.2]} 37. h4
{[%clk 0:00:16.5]} 37... h6 {[%clk 0:01:21.8]} 38. a4 {[%clk 0:00:12.1]} 38...
g5 {[%clk 0:01:12.7]} 39. h5 {[%clk 0:00:09.3]} 39... Kd5 {[%clk 0:01:06.1]} 40.
Kc3 {[%clk 0:00:05.2]} 40... Kc5 {[%clk 0:01:05]} 41. b4+ {[%clk 0:00:03.3]}
41... cxb3 {[%clk 0:01:02.6]} 42. Kxb3 {[%clk 0:00:04.2]} 42... Kd4 {[%clk
0:00:50.8]} 43. Kb4 {[%clk 0:00:04.6]} 43... Ke3 {[%clk 0:00:50.8]} 44. Kb5
{[%clk 0:00:03.4]} 44... Kf2 {[%clk 0:00:51.1]} 45. Kxb6 {[%clk 0:00:04.1]}
45... Kxg2 {[%clk 0:00:50.9]} 46. a5 {[%clk 0:00:03.8]} 46... Kxf3 {[%clk
0:00:44.4]} 47. a6 {[%clk 0:00:01.3]} 47... Ke2 {[%clk 0:00:30.9]} 48. a7 {[%clk
0:00:02.2]} 48... f3 {[%clk 0:00:31.4]} 49. a8=Q {[%clk 0:00:03.1]} 49... f2
{[%clk 0:00:31.8]} 50. Qe4+ {[%clk 0:00:03.3]} 50... Kd1 {[%clk 0:00:28.3]} 51.
Qf3+ {[%clk 0:00:03.6]} 51... Ke1 {[%clk 0:00:28.4]} 52. Qe3+ {[%clk 0:00:04.2]}
52... Kf1 {[%clk 0:00:28]} 53. Kc5 {[%clk 0:00:04.3]} 53... g4 {[%clk
0:00:27.5]} 54. Qxh6 {[%clk 0:00:04.5]} 54... Kg2 {[%clk 0:00:26.5]} 55. Qd2
{[%clk 0:00:04.3]} 55... Kg1 {[%clk 0:00:25.7]} 56. Qe3 {[%clk 0:00:04.1]} 56...
Kg2 {[%clk 0:00:25.2]} 57. Qe2 {[%clk 0:00:04.1]} 57... g3 {[%clk 0:00:20.4]}
58. h6 {[%clk 0:00:03.6]} 58... Kg1 {[%clk 0:00:20.6]} 59. h7 {[%clk 0:00:04.5]}
59... f1=Q {[%clk 0:00:20.8]} 60. Qxf1+ {[%clk 0:00:04]} 60... Kxf1 {[%clk
0:00:21.7]} 0-1